bitfinex/quotes_ETHUSD_20251124
["timestamp","ask_amount","ask_price","bid_price","bid_amount"]
[1764002544103,0.002,2861.1,2861.0,0.95614854]
[1764002544303,0.002,2861.1,2861.0,0.4735]
[1764002544704,0.002,2861.1,2860.8,0.405504]
[1764002545443,0.002,2861.1,2860.7,0.223]
[1764002545997,0.002,2861.1,2860.7,3.718647]
[1764002546215,0.4651,2860.8,2860.4,0.50880351]
[1764002546460,0.4651,2860.8,2860.5,0.223]
[1764002546753,0.002,2861.1,2860.5,0.223]
[1764002547044,0.002,2861.1,2860.7,0.4735]
[1764002547611,0.002,2861.1,2861.0,0.4735]
[1764002547946,0.002,2861.1,2861.0,0.6965]
[1764002548317,0.002,2861.1,2861.0,1.56790257]
[1764002549544,0.002,2861.1,2861.0,5.06318394]
[1764002550124,0.002,2861.1,2861.0,1.56790257]
[1764002550326,0.5787,2861.1,2860.3,0.4522]
[1764002550531,0.1136,2861.1,2860.2,0.191]
[1764002550726,0.4849,2861.0,2860.3,0.223]
[1764002550940,0.2787,2860.3,2860.1,0.001]
[1764002551221,0.4849,2861.0,2860.1,0.001]
[1764002551222,0.1953,2860.9,2860.1,0.224]
[1764002551413,0.1953,2860.9,2860.1,0.001]
[1764002551414,0.0863,2860.2,2860.1,0.001]
[1764002551825,0.4809,2860.6,2860.1,0.001]
[1764002553049,0.1953,2860.9,2860.1,0.22406381]
[1764002553366,0.1953,2860.9,2860.2,0.03496259]
[1764002553703,0.002,2861.1,2860.3,3.49613676]
[1764002553906,0.002,2861.1,2860.4,0.34961368]
[1764002554885,0.0012,2861.1,2860.5,5.268671]
[1764002555071,0.0012,2861.1,2860.5,0.4522]
[1764002555397,0.0012,2861.1,2860.4,0.57261368]
[1764002555561,0.0012,2861.1,2860.4,4.52077043]
[1764002555911,0.0012,2861.1,2860.5,3.94791579]
[1764002556066,0.0012,2861.1,2860.5,0.45207704]
[1764002556391,0.4849,2861.0,2860.6,0.223]
[1764002556592,0.0012,2861.1,2860.6,0.223]
[1764002556793,0.4861,2861.1,2860.6,0.223]
[1764002557291,0.2805,2860.7,2860.6,0.223]
[1764002557515,0.2805,2860.7,2860.1,1.046804]
[1764002557516,0.2805,2860.7,2860.1,0.001]
[1764002557689,0.4849,2860.6,2860.1,0.001]
[1764002558005,0.0874,2860.2,2860.1,0.001]
[1764002560297,0.5683,2860.2,2860.1,0.001]
[1764002562009,0.0874,2860.2,2860.1,0.001]
[1764002562212,0.1942,2860.7,2860.1,0.001]
[1764002562510,0.6791,2860.7,2860.1,0.001]
[1764002562711,0.0874,2860.2,2860.1,0.001]
[1764002564319,0.4809,2860.6,2860.1,0.001]
[1764002564522,0.0913,2860.2,2860.1,0.001]
[1764002565505,0.4809,2860.6,2860.1,0.001]
[1764002565907,0.0913,2860.2,2860.1,0.001]
[1764002566121,0.4809,2860.6,2860.1,0.001]
[1764002566336,0.4809,2860.6,2860.1,0.4745]
[1764002566637,0.1942,2860.7,2860.1,1.1148]
[1764002566924,0.0012,2861.1,2860.2,0.46112439]
[1764002567130,0.4861,2861.1,2860.2,0.46112439]
[1764002567311,0.4861,2861.1,2860.2,0.91332439]
[1764002568185,0.4861,2861.1,2860.3,0.459]
[1764002568425,0.0012,2861.1,2860.3,7.45116247]
[1764002568643,0.0012,2861.1,2860.4,0.79122869]
[1764002568791,0.0012,2861.1,2860.4,1.47322869]
[1764002568991,0.0012,2861.1,2860.5,0.459]
[1764002570420,0.0012,2861.1,2861.0,0.4972]
[1764002570902,0.121,2861.1,2860.6,3.49577011]
[1764002571102,0.121,2861.1,2860.7,0.39547701]
[1764002572291,0.121,2861.1,2861.0,0.4972]
[1764002572292,0.0012,2861.1,2861.0,0.4972]
[1764002572723,0.0012,2861.1,2860.7,0.39547701]
[1764002572924,0.0012,2861.1,2860.6,3.90127333]
[1764002573227,0.0012,2861.1,2860.6,7.39704344]
[1764002573422,0.0012,2861.1,2861.0,0.4972]
[1764002574364,0.121,2861.1,2860.6,3.49576933]
[1764002574524,0.121,2861.1,2860.5,3.90139632]
[1764002574725,0.121,2861.1,2860.6,0.80981234]
[1764002575360,0.5709,2861.1,2860.6,0.80981234]
[1764002575860,0.3025,2860.7,2860.4,0.223]
[1764002576374,0.1846,2860.9,2860.4,0.7008]
[1764002576683,0.1846,2860.9,2860.4,4.19678821]
[1764002576921,0.0012,2861.1,2860.9,0.405504]
[1764002577188,0.0012,2861.1,2860.5,0.4778]
[1764002577189,0.0012,2861.1,2861.0,4.500183]
[1764002577499,0.0012,2861.1,2861.0,4.9502013]
[1764002577659,0.0012,2861.1,2861.0,5.4280013]
[1764002578055,0.0012,2861.1,2861.0,10.3342273]
[1764002578593,0.0004,2861.1,2861.0,20.78063527]
[1764002578950,0.0004,2861.1,2861.0,22.51366827]
[1764002579177,0.0004,2861.1,2861.0,20.76948527]
[1764002580088,0.0004,2861.1,2861.0,23.41909227]
[1764002580595,0.0004,2861.1,2861.0,24.14468638]
[1764002580776,0.002,2861.4,2861.3,10.36674911]
[1764002581089,0.4532,2862.9,2861.3,14.52840002]
[1764002581290,0.4532,2863.4,2862.1,16.905827]
[1764002581451,0.4532,2863.4,2862.3,0.405504]
[1764002581652,0.4532,2863.4,2862.1,0.1858]
[1764002581846,0.4532,2863.4,2862.2,0.223]
[1764002582075,0.4532,2863.4,2862.0,0.4778]
[1764002582399,0.4532,2863.4,2862.2,6.999438]
[1764002583192,0.4532,2863.4,2862.2,6.231263]
[1764002583390,0.2752,2862.3,2862.2,6.231263]
[1764002583573,0.4532,2863.4,2862.1,0.223]
[1764002583805,0.4532,2863.3,2862.1,7.21084737]
[1764002584009,0.4532,2863.3,2862.2,0.4778]
[1764002584819,0.4532,2863.3,2862.2,3.97150669]
[1764002585480,0.4532,2863.3,2862.3,0.4778]
[1764002585679,0.4532,2863.3,2862.4,0.405504]
[1764002585919,0.4532,2863.3,2862.5,0.223]
[1764002586104,0.4532,2863.3,2862.5,0.7008]
[1764002586304,0.4552,2863.3,2862.5,0.7008]
[1764002586715,0.002,2863.3,2862.6,3.49332774]
[1764002587038,0.002,2863.3,2862.7,0.76875503]
[1764002587487,0.002,2863.3,2862.7,1.24655503]
[1764002588384,0.4544,2862.8,2862.6,0.223]
[1764002588586,0.2731,2862.7,2862.6,0.223]
[1764002588895,0.002,2863.3,2862.6,0.223]
[1764002588896,0.1803,2862.9,2862.6,0.223]
[1764002589194,0.4552,2863.3,2862.6,0.223]
[1764002589535,0.4552,2863.3,2862.6,4.13575501]
[1764002589689,0.4552,2863.3,2862.6,3.71631851]
[1764002590087,0.4552,2863.3,2862.6,0.223]
[1764002590787,0.4552,2863.3,2861.8,0.4778]
[1764002590788,0.2752,2862.7,2861.8,0.4778]
[1764002590992,0.1794,2862.7,2862.0,0.72559411]
[1764002591205,0.1794,2862.7,2862.1,0.75435671]
[1764002591408,0.002,2863.3,2862.6,0.4972]
[1764002591609,0.4552,2863.3,2862.6,0.223]
[1764002593044,0.2752,2862.7,2862.2,0.223]
[1764002593223,0.2752,2862.7,2862.2,3.71677764]
[1764002593432,0.1803,2862.9,2862.3,0.84947776]
[1764002594225,0.6335,2862.9,2862.3,0.37167776]
[1764002594802,0.1803,2862.9,2862.3,0.37167776]
[1764002595134,0.4552,2863.3,2862.4,3.49357182]
[1764002595327,0.4552,2863.3,2862.4,6.98714364]
[1764002595521,0.4552,2863.3,2862.5,0.78366214]
[1764002596708,0.4552,2863.3,2862.3,0.37167776]
[1764002596908,0.4552,2863.3,2862.2,3.71681371]
[1764002597128,0.4552,2863.3,2862.2,4.19461371]
[1764002597812,0.4552,2863.3,2862.2,7.68842965]
[1764002598016,0.4552,2863.3,2862.2,0.7008]
[1764002598216,0.4552,2863.3,2862.2,4.19458497]
[1764002598528,0.4552,2863.3,2862.2,4.61404347]
[1764002598748,0.4552,2863.3,2862.2,4.13624347]
[1764002598955,0.4552,2863.3,2862.2,7.63005941]
[1764002599264,0.4552,2863.3,2862.2,4.13624347]
[1764002600013,0.4552,2863.3,2862.2,0.223]
[1764002600247,0.4552,2863.3,2862.2,3.71676806]
[1764002600748,0.4552,2863.3,2862.3,0.4624]
[1764002601151,0.4552,2863.3,2862.3,3.95608866]
[1764002601337,0.4552,2863.3,2862.2,3.71681406]
[1764002601541,0.4552,2863.3,2862.3,0.41792141]
[1764002602354,0.4544,2863.3,2862.3,0.41792141]
[1764002602855,0.4544,2863.3,2862.4,0.405504]
[1764002602856,0.0012,2863.3,2862.4,0.405504]
[1764002603240,0.0012,2863.3,2862.5,7.44929956]
[1764002603440,0.0012,2863.3,2862.6,1.00848036]
[1764002603834,0.0012,2863.3,2862.7,0.4624]
[1764002604248,0.0012,2863.3,2863.2,0.6482]
[1764002604466,0.0012,2863.3,2863.2,0.8712]
[1764002604624,0.0012,2863.3,2863.2,0.6825]
[1764002605141,0.0012,2863.3,2863.2,1.1449]
[1764002605348,0.0012,2863.3,2863.2,9.43869569]
[1764002605547,0.0012,2863.3,2863.2,4.87926308]
[1764002605870,0.0012,2863.3,2863.2,5.04299969]
[1764002606074,0.0012,2863.3,2863.2,8.90908869]
[1764002606230,0.1872,2865.6,2863.2,8.90908869]
[1764002606231,0.002,2863.9,2863.6,19.221625]
[1764002606431,2.04368795,2866.0,2865.5,0.6482]
[1764002606432,0.1785,2866.0,2865.5,0.6482]
[1764002606769,1.24526135,2866.9,2865.5,0.6482]
[1764002606770,0.1872,2866.8,2865.9,0.4595]
[1764002606952,0.1872,2866.8,2865.6,0.8664189]
[1764002607269,0.4537,2866.7,2865.7,0.223]
[1764002607469,0.4537,2866.7,2865.0,0.1887]
[1764002607630,0.3252715,2866.6,2865.3,0.405504]
[1764002607826,0.4537,2866.7,2865.2,16.66454]
[1764002608032,0.4537,2866.6,2865.4,0.405504]
[1764002608233,0.1872,2866.8,2865.6,0.405504]
[1764002608547,0.1872,2866.8,2865.5,7.1741266]
[1764002608548,0.1872,2866.8,2865.8,0.405504]
[1764002608741,0.1872,2866.8,2866.0,0.405504]
[1764002608943,0.002,2867.0,2866.0,0.405504]
[1764002609138,0.002,2867.0,2866.1,0.6511]
[1764002609335,0.002,2867.0,2866.2,0.405504]
[1764002609663,0.002,2867.0,2866.4,0.405504]
[1764002609850,0.002,2867.0,2866.5,0.223]
[1764002610168,0.002,2867.0,2866.3,0.4624]
[1764002610356,0.002,2867.0,2866.1,0.1887]
[1764002610357,0.002,2867.0,2866.6,0.223]
[1764002610873,0.002,2867.0,2866.6,0.173]
[1764002611047,0.002,2867.0,2866.2,0.405504]
[1764002611048,0.1872,2866.7,2866.1,0.1887]
[1764002611237,0.1872,2866.9,2866.5,0.223]
[1764002611632,0.1872,2866.9,2866.1,0.6511]
[1764002611869,0.1872,2866.9,2866.2,1.090904]
[1764002612032,0.1872,2866.9,2866.2,1.5677786]
[1764002612435,0.1872,2866.9,2866.2,1.1622746]
[1764002612665,0.1872,2866.9,2866.1,0.1887]
[1764002612666,0.1872,2866.9,2866.3,0.223]
[1764002613070,0.6409,2866.9,2866.1,0.1887]
[1764002613269,0.6409,2866.9,2866.4,0.223]
[1764002613873,0.0962,2866.5,2865.2,0.1887]
[1764002614077,0.0045,2866.2,2865.2,0.4117]
[1764002614434,0.4537,2866.1,2865.2,0.4117]
[1764002614640,0.0045,2866.2,2865.3,0.4624]
[1764002614970,0.4537,2866.2,2865.2,0.4117]
[1764002615272,0.4537,2866.2,2865.2,0.223]
[1764002615660,0.4537,2866.4,2865.2,0.6854]
[1764002615835,0.4537,2866.4,2865.3,3.49003594]
[1764002616036,0.4537,2866.4,2865.2,0.223]
[1764002616260,0.0984,2866.3,2865.3,0.223]
[1764002616482,0.4537,2866.2,2865.0,0.1887]
[1764002616659,0.4537,2866.2,2864.6,0.4624]
[1764002616859,0.4537,2866.2,2864.7,3.10042966]
[1764002617059,0.4537,2866.2,2864.8,0.70537086]
[1764002617296,0.4537,2866.2,2864.7,3.71376637]
[1764002617473,0.4537,2866.2,2864.8,7.4135266]
[1764002617642,0.4537,2866.2,2865.0,7.674256]
[1764002617843,0.4537,2866.2,2864.9,0.4624]
[1764002618152,0.4537,2866.7,2865.7,4.82380411]
[1764002618354,0.4537,2866.7,2865.8,0.8741]
[1764002618539,0.4537,2866.7,2865.3,0.4624]
[1764002618745,0.72559411,2866.6,2865.3,0.223]
[1764002618977,0.72559411,2866.6,2865.2,0.223]
[1764002618978,0.1836,2866.0,2865.2,0.223]
[1764002619466,0.4537,2865.9,2865.2,0.223]
[1764002619665,0.1836,2866.0,2865.2,0.61319708]
[1764002619864,0.6373,2866.0,2865.2,0.223]
[1764002620384,0.4537,2866.4,2865.2,4.17555775]
[1764002621357,0.4537,2866.4,2865.3,3.95234133]
[1764002621947,0.4537,2866.4,2865.2,0.223]
[1764002622382,0.4537,2866.4,2865.2,0.65943291]
[1764002623055,0.4537,2866.4,2865.2,3.71311198]
[1764002623677,0.4537,2866.4,2865.2,7.20326973]
[1764002623988,0.4537,2866.4,2865.3,0.4624]
[1764002625598,0.002,2866.6,2866.3,0.6482]
[1764002625888,0.002,2866.6,2865.2,0.72559411]
[1764002625889,7.4068266,2866.6,2865.2,0.72559411]
[1764002626042,0.4549,2866.6,2865.5,0.223]
[1764002626248,0.0012,2866.6,2865.6,0.0348967]
[1764002626450,0.0012,2866.6,2865.8,3.002341]
[1764002626684,0.0012,2866.6,2865.7,0.4624]
[1764002626685,0.0012,2866.6,2865.9,0.3464741]
[1764002626847,0.4537,2866.5,2865.4,0.4624]
[1764002627047,0.4537,2866.5,2865.5,0.223]
[1764002627488,0.0012,2866.6,2865.7,6.9790976]
[1764002627852,0.0012,2866.6,2865.7,3.9515488]
[1764002628195,0.0012,2866.6,2865.8,0.7441197]
[1764002628388,0.4594,2866.6,2865.8,0.7441197]
[1764002629294,0.4594,2866.6,2865.5,0.223]
[1764002629295,0.0012,2866.6,2865.9,0.03489305]
[1764002629476,0.0012,2866.6,2866.0,0.223]
[1764002629662,0.0693,2866.0,2865.2,3.49010711]
[1764002629847,0.0693,2866.0,2865.4,0.223]
[1764002630052,0.2518,2866.0,2865.4,0.223]
[1764002630308,0.48,2866.5,2865.5,0.4703]
[1764002630486,0.48,2866.2,2865.4,0.223]
[1764002631251,0.48,2866.2,2865.4,0.59431439]
[1764002631752,0.48,2866.2,2865.4,3.71290071]
[1764002632277,0.48,2866.2,2865.4,0.223]
[1764002632485,0.48,2866.2,2865.4,3.71289143]
[1764002632983,0.4812,2866.6,2865.5,0.4703]
[1764002633296,0.4812,2866.6,2865.6,0.76731056]
[1764002633597,0.4812,2866.6,2865.6,4.25697873]
[1764002633804,0.0012,2866.6,2865.7,0.4703]
[1764002635618,0.0012,2866.6,2865.8,6.97885406]
[1764002635775,0.0012,2866.6,2866.5,0.6509]
[1764002635958,0.0012,2866.6,2866.5,0.223]
[1764002637087,0.0012,2866.6,2866.5,0.685]
[1764002637271,0.0012,2866.6,2866.5,0.223]
[1764002637704,0.0012,2866.6,2866.5,0.685]
[1764002638266,0.0012,2866.6,2866.5,1.14940416]
[1764002638601,0.0012,2866.6,2866.5,5.10827907]
[1764002638799,0.0012,2866.6,2866.5,4.64387491]
[1764002639765,0.0012,2866.6,2866.5,15.44898885]
[1764002639992,0.0012,2866.6,2866.5,19.30818202]
[1764002640192,0.0012,2866.6,2866.5,8.69421702]
[1764002640378,0.0012,2866.6,2866.5,9.08583003]
[1764002640580,0.1829,2868.7,2866.9,0.462]
[1764002640795,0.1829,2868.7,2866.6,1.13109811]
[1764002640796,0.32610798,2868.6,2867.6,0.462]
[1764002641001,0.32610798,2868.5,2867.7,0.223]
[1764002641201,0.1829,2868.9,2867.7,0.8822]
[1764002641424,0.1829,2868.9,2867.8,0.4703]
[1764002641701,0.00535624,2869.0,2867.9,18.57762484]
[1764002641901,0.00535624,2869.0,2867.8,0.4703]
[1764002641902,0.81087759,2869.0,2868.0,1.90479248]
[1764002642094,0.80554759,2868.9,2868.1,0.223]
[1764002642266,0.32554759,2868.8,2868.1,0.223]
[1764002642467,0.32554759,2868.8,2868.1,0.6933]
[1764002642704,0.00535624,2869.0,2868.1,0.6933]
[1764002642910,0.00535624,2869.0,2868.2,0.4703]
[1764002643412,0.48,2868.9,2867.9,2.246316]
[1764002643582,0.48,2868.9,2868.3,0.224]
[1764002643977,0.00535624,2869.0,2868.3,0.224]
[1764002644489,0.00535624,2869.0,2868.9,0.462]
[1764002644691,0.00535624,2869.0,2868.3,4.18062913]
[1764002644885,0.00535624,2869.0,2868.4,0.4703]
[1764002645075,0.00535624,2869.0,2868.5,0.76670148]
[1764002645495,0.00535624,2869.0,2868.6,0.4703]
[1764002645714,0.00535624,2869.0,2868.9,0.462]
[1764002645914,0.00535624,2869.0,2868.9,0.685]
[1764002646079,0.00535624,2869.0,2868.9,1.1553]
[1764002646278,0.00535624,2869.0,2868.9,1.39640318]
[1764002646473,0.00535624,2869.0,2868.2,0.4703]
[1764002646474,0.07815624,2869.0,2868.2,0.4703]
[1764002646701,0.07815624,2869.0,2868.3,0.223]
[1764002646900,0.00535624,2869.0,2868.4,6.755454]
[1764002647104,0.00535624,2869.0,2868.4,7.225754]
[1764002647306,0.00535624,2869.0,2865.4,1.72922245]
[1764002647307,0.0728,2868.5,2867.7,0.1889]
[1764002647490,0.1829,2868.9,2867.5,0.1889]
[1764002647724,0.6629,2868.9,2867.8,0.224]
[1764002648043,0.6629,2868.9,2867.8,4.60289767]
[1764002648258,0.1829,2868.9,2867.9,6.154413]
[1764002648437,0.1829,2868.9,2867.9,0.4703]
[1764002648613,0.1829,2868.9,2868.1,0.405504]
[1764002648814,0.00535624,2869.0,2868.1,7.751077]
[1764002649042,0.00535624,2869.0,2868.2,1.2924377]
[1764002649209,0.00535624,2869.0,2868.3,0.224]
[1764002649410,0.00535624,2869.0,2868.2,0.4703]
[1764002649610,0.00535624,2869.0,2868.3,0.224]
[1764002649839,0.00455624,2869.0,2868.3,0.224]
[1764002650622,0.00455624,2869.0,2868.4,0.72816264]
[1764002650828,0.00455624,2869.0,2868.4,0.6933]
[1764002651476,0.00455624,2869.0,2867.7,0.72559411]
[1764002651477,0.0728,2868.5,2867.7,0.72559411]
[1764002651648,0.0728,2868.5,2867.6,0.4703]
[1764002651986,0.0728,2868.5,2867.3,0.6592]
[1764002651987,0.5487,2868.5,2867.3,0.6592]
[1764002652270,0.0739,2867.6,2866.9,0.224]
[1764002652474,0.1732,2867.7,2866.9,0.224]
[1764002652618,0.1732,2867.7,2866.9,0.6943]
[1764002652819,0.48,2867.6,2866.9,0.224]
[1764002653243,4.19242633,2869.9,2866.9,0.224]
[1764002653244,0.1785,2867.8,2866.9,0.224]
[1764002653457,0.405504,2868.7,2867.1,6.660757]
[1764002653616,0.48,2868.6,2867.2,0.71659367]
[1764002653819,0.48,2868.6,2867.1,0.1889]
[1764002654119,0.48,2868.6,2867.2,3.48772321]
[1764002654357,0.405504,2868.5,2866.6,0.1889]
[1764002654543,0.48,2868.4,2866.7,0.224]
[1764002654720,0.48,2868.4,2866.8,0.43716047]
[1764002655281,0.48,2868.4,2866.9,0.224]
[1764002655425,0.48,2868.4,2867.0,2.779618]
[1764002655762,0.72559411,2868.7,2867.3,7.867589]
[1764002655763,0.48,2868.7,2867.3,7.867589]
[1764002655947,0.48,2868.6,2867.4,4.3146812]
[1764002656148,0.48,2868.6,2867.5,0.224]
[1764002656360,0.48,2868.6,2867.6,0.03487236]
[1764002656560,0.48,2868.6,2867.5,0.6943]
[1764002657548,0.48,2868.6,2867.6,2.328086]
[1764002657859,0.48,2868.6,2867.5,0.6943]
[1764002658063,0.48,2868.6,2867.6,0.76691518]
[1764002658262,0.48,2868.6,2867.7,0.224]
[1764002660343,0.48,2868.6,2867.1,0.6871]
[1764002660665,0.48,2868.6,2867.3,8.909245]
[1764002661029,0.48,2868.6,2867.3,8.011299]
[1764002661230,0.48,2868.6,2867.4,1.22211298]
[1764002661463,0.48,2868.6,2867.3,14.968281]
[1764002661665,0.48,2868.6,2867.4,0.224]
[1764002661966,0.48,2868.6,2867.5,0.224]
[1764002662533,0.00455624,2869.0,2867.6,17.26055542]
[1764002662754,0.00455624,2869.0,2867.9,11.132981]
[1764002662948,0.00455624,2869.0,2867.8,0.72559411]
[1764002662949,0.00455624,2869.0,2868.1,2.631867]
[1764002663154,0.00455624,2869.0,2868.3,2.9248]
[1764002663352,0.00455624,2869.0,2868.2,0.7222]
[1764002663564,0.00455624,2869.0,2868.3,0.4982]
[1764002663951,0.1828,2868.9,2868.3,3.48638566]
[1764002664150,0.1828,2868.9,2868.4,0.37103857]
[1764002664353,0.4949,2868.8,2868.3,0.224]
[1764002664595,0.4949,2868.8,2868.4,0.03486264]
[1764002664756,0.4949,2868.8,2868.3,0.224]
[1764002664957,0.1828,2868.9,2868.3,0.224]
[1764002666281,0.1828,2868.9,2867.3,3.4875455]
[1764002666282,0.6777,2868.9,2867.6,0.4982]
[1764002666580,0.0546,2868.4,2867.8,8.0]
[1764002666783,0.0546,2868.4,2867.9,0.8224]
[1764002666988,0.0546,2868.4,2867.8,8.000226]
[1764002667463,0.1828,2868.9,2867.9,0.4982]
[1764002667871,0.6777,2868.9,2867.9,0.4982]
[1764002668349,0.6777,2868.9,2867.8,3.48695194]
[1764002668350,0.4949,2868.8,2867.8,2.247923]
[1764002668546,0.4949,2868.8,2867.9,0.224]
[1764002668774,0.4949,2868.8,2867.9,0.59510649]
[1764002669151,0.1828,2868.9,2868.0,0.0348675]
[1764002669581,0.1828,2868.9,2868.1,0.4982]
[1764002670262,0.6777,2868.9,2868.1,3.98482481]
[1764002670476,0.6777,2868.9,2868.1,3.48662481]
[1764002670792,0.6777,2868.9,2868.2,0.34866248]
[1764002670950,0.4949,2868.8,2868.2,0.34866248]
[1764002671150,0.1828,2868.9,2868.3,0.224]
[1764002672159,0.00455624,2869.0,2868.4,7.50559086]
[1764002672472,0.00455624,2869.0,2868.4,7.47072822]
[1764002672679,0.00455624,2869.0,2868.4,3.98446411]
[1764002672877,0.00455624,2869.0,2868.4,7.47072822]
[1764002673184,0.00455624,2869.0,2868.5,0.76947282]
[1764002673681,0.00375624,2869.0,2868.6,0.4982]
[1764002673884,0.00375624,2869.0,2868.5,0.76947282]
[1764002674054,0.00375624,2869.0,2868.5,1.26767282]
[1764002674256,0.00375624,2869.0,2868.6,0.8240201]
[1764002674452,0.00375624,2869.0,2868.6,4.80819839]
[1764002674654,0.00375624,2869.0,2868.6,4.30999839]
[1764002674861,0.00375624,2869.0,2868.6,1.3222201]
[1764002675083,0.00375624,2869.0,2868.6,3.98419044]
[1764002675254,0.00375624,2869.0,2868.7,0.4982]
[1764002675454,0.00375624,2869.0,2868.8,0.223]
[1764002676196,0.00375624,2869.0,2868.9,0.4808]
[1764002677200,0.00375624,2869.0,2868.8,0.223]
[1764002677353,0.00375624,2869.0,2868.8,0.59389561]
[1764002677558,0.00375624,2869.0,2868.9,0.223]
[1764002677994,0.00375624,2869.0,2868.9,0.7038]
[1764002678276,0.00375624,2869.0,2868.9,4.18945652]
[1764002678478,0.00375624,2869.0,2868.9,0.7038]
[1764002678708,0.00375624,2869.0,2868.9,0.223]
[1764002678907,0.00375624,2869.0,2868.9,4.07952863]
[1764002679071,0.00375624,2869.0,2868.9,0.59387211]
[1764002679496,0.00375624,2869.0,2868.9,4.07952863]
[1764002679705,0.00375624,2869.0,2868.9,4.56032863]
[1764002679974,0.00375624,2869.0,2868.9,1.07567211]
[1764002682207,0.05835624,2869.0,2868.9,0.37187211]
[1764002682408,0.00375624,2869.0,2868.9,4.68865652]
[1764002682611,0.00375624,2869.0,2868.9,1.203]
[1764002682810,0.00375624,2869.0,2868.9,0.7048]
[1764002683307,0.00375624,2869.0,2868.9,4.19045652]
[1764002683611,0.00375624,2869.0,2868.9,23.90250352]
[1764002683775,0.00375624,2869.0,2868.9,18.71223765]
[1764002684604,0.00375624,2869.0,2868.9,41.51197965]
[1764002684916,0.00375624,2869.0,2868.9,41.28897965]
[1764002685084,0.00375624,2869.0,2868.9,21.16247965]
[1764002685713,0.00375624,2869.0,2868.9,34.54995076]
[1764002685891,0.00375624,2869.0,2868.9,29.77059576]
[1764002686090,0.00375624,2869.0,2868.9,33.44959576]
[1764002686289,0.00375624,2869.0,2868.9,19.31191265]
[1764002686478,0.00375624,2869.0,2868.9,19.53491265]
[1764002686681,0.00375624,2869.0,2868.9,13.16710365]
[1764002686880,0.00375624,2869.0,2868.9,0.001]
[1764002687106,0.00375624,2869.0,2868.9,0.224]
[1764002688214,0.00375624,2869.0,2868.9,4.20125652]
[1764002688525,0.00375624,2869.0,2868.9,0.001]
[1764002688688,0.00375624,2869.0,2868.9,0.224]
[1764002688885,0.47435624,2869.0,2868.9,0.224]
[1764002689382,0.47435624,2869.0,2868.9,0.001]
[1764002689597,0.47435624,2869.0,2868.9,0.224]
[1764002690004,0.00375624,2869.0,2868.9,0.224]
[1764002690787,0.00375624,2869.0,2868.9,0.59497499]
[1764002691300,0.07975624,2869.0,2868.9,0.224]
[1764002691705,0.54905624,2869.0,2868.9,0.224]
[1764002692399,0.07975624,2869.0,2868.9,0.224]
[1764002693416,0.00375624,2869.0,2868.9,0.224]
[1764002693930,0.07975624,2869.0,2868.9,0.224]
[1764002694309,0.54905624,2869.0,2868.9,0.001]
[1764002694520,0.54905624,2869.0,2868.9,0.224]
[1764002695400,0.07975624,2869.0,2868.9,0.224]
[1764002695615,0.00375624,2869.0,2868.9,0.224]
[1764002696556,0.54905624,2869.0,2868.9,0.224]
[1764002697036,0.54905624,2869.0,2868.9,0.001]
[1764002697337,0.54825624,2869.0,2868.9,0.224]
[1764002697808,0.08285624,2869.0,2868.9,0.224]
[1764002698425,0.08485624,2869.0,2868.9,0.224]
[1764002699136,0.55025624,2869.0,2868.9,0.224]
[1764002700440,0.00495624,2869.0,2868.9,0.7178]
[1764002700758,0.00495624,2869.0,2868.9,5.938082]
[1764002700904,0.00495624,2869.0,2868.9,1.0886082]
[1764002701102,0.00495624,2869.0,2868.9,0.224]
[1764002701362,0.00495624,2869.0,2868.9,4.20345652]
[1764002701498,0.00495624,2869.0,2868.9,0.224]
[1764002702300,0.00495624,2869.0,2868.9,3.70965652]
[1764002702506,0.00495624,2869.0,2868.9,4.68355652]
[1764002702707,0.00495624,2869.0,2868.9,13.64365878]
[1764002703025,0.00495624,2869.0,2868.9,8.82756378]
[1764002703228,0.00495624,2869.0,2868.9,7.77471978]
[1764002703630,0.00495624,2869.0,2868.9,7.50134678]
[1764002703841,0.00495624,2869.0,2868.9,20.78469578]
[1764002704114,0.00495624,2869.0,2868.9,17.96691378]
[1764002704258,0.00495624,2869.0,2868.9,11.80539878]
[1764002704767,0.00495624,2869.0,2868.9,8.97166778]
[1764002705068,0.00495624,2869.0,2868.9,21.31641778]
[1764002705365,0.00495624,2869.0,2868.9,9.26497578]
[1764002705935,0.00495624,2869.0,2868.9,10.21202978]
[1764002706140,0.00495624,2869.0,2868.9,9.98902978]
[1764002706340,0.00495624,2869.0,2868.9,10.21202978]
[1764002706854,0.00495624,2869.0,2868.9,21.06231578]
[1764002707223,0.00495624,2869.0,2868.9,25.32781978]
[1764002707423,0.00495624,2869.0,2868.9,24.92231578]
[1764002707867,0.00495624,2869.0,2868.9,28.97993078]
[1764002708549,0.00495624,2869.0,2868.9,33.79002889]
[1764002708868,0.00495624,2869.0,2868.9,51.08281661]
[1764002709049,0.00495624,2869.0,2868.9,38.03581289]
[1764002709249,0.00495624,2869.0,2868.9,22.66440489]
[1764002709450,0.00495624,2869.0,2868.9,22.88740489]
[1764002709862,0.00495624,2869.0,2868.9,30.37154389]
[1764002710050,0.00495624,2869.0,2868.9,29.41481589]
[1764002710392,0.00495624,2869.0,2868.9,29.82031989]
[1764002710558,0.00495624,2869.0,2868.9,33.49931989]
[1764002710963,0.00495624,2869.0,2868.9,41.44345089]
[1764002711460,0.00495624,2869.0,2868.9,41.22045089]
[1764002711771,0.00495624,2869.0,2868.9,41.44345089]
[1764002712083,0.00495624,2869.0,2868.9,44.17058789]
[1764002712289,0.00495624,2869.0,2868.9,46.99981661]
[1764002712493,0.1829,2869.9,2869.2,0.72559411]
[1764002712653,0.1829,2869.9,2869.4,8.443253]